Cogmind - Beta 16 --- EXPLORER MODE // 2025.11.14 @ 12:05:11 Player: K.K.Y. Result: Destroyed by Y-45 Defender with Heavy Assault Rifle Performance ------------- Evolutions (0) 0 Regions Visited (3) 600 Robots Destroyed (32) 160 Value Destroyed (786) 786 Prototype IDs (12) 240 Alien Tech Used (0) 0 Bonus (0) 0 TOTAL SCORE: 1786 Bonus ------- None Cogmind --------- Core Integrity 0/250 Matter 262/300 Energy 250/250 System Corruption 0% Temperature Danger (412) Movement Walking (130) Location -8/Recycling Parts ------- > --- POWER (1) -------- Ion Engine > --- PROPULSION (3) --- Cargo Legs > --- UTILITY (2+2) ---- High-capacity Storage Unit > --- WEAPON (2) ------- Battle Rifle > --- INVENTORY (20) --- Light Treads Light Treads Spiked Treads Machine Analyzer Sensor Array Scrap Shield Makeshift Hacking Suite Makeshift System Restoration Module Recalibrator Cobbler Unit Subdweller Beam Cannon Grenade Launcher Datajack Peak State ------------ > --- POWER ------------ Ion Engine > --- PROPULSION ------- Cargo Legs > --- UTILITY ---------- High-capacity Storage Unit Makeshift Thermal Plating > --- WEAPON ----------- Beam Cannon Battle Cannon > --- INVENTORY -------- Light Treads Light Treads Spiked Treads Machine Analyzer Sensor Array Makeshift Hacking Suite Makeshift System Restoration Module Recalibrator Cobbler Unit Heavy Riot Gun Subdweller Beam Cannon Battle Rifle Grenade Launcher Datajack [Rating: 28] Favorites ----------- Power Ion Engine Engine Ion Engine Propulsion Light Treads Treads Light Treads Leg Cargo Legs Utility Light Armor Plating Storage High-capacity Storage Unit Protection Light Armor Plating Weapon Beam Cannon Energy Gun Heavy Riot Gun Energy Cannon Beam Cannon Ballistic Gun Light Assault Rifle Ballistic Cannon Battle Cannon Special Weapon Mining Laser Special Melee Weapon Datajack Build | -11 -10 -10 -8 ------- Run | Yrd Mat Sub Rec Slots Evolved 1 | . 1 . . Power . | . . . . Propulsion 1 | . 1 . . Utility . | . . . . Weapon . | . . . . Parts Attached 22 | 7 7 6 2 Power 3 | 1 1 1 . Engine 3 | 1 1 1 . Core . | . . . . Reactor . | . . . . Propulsion 4 | 2 1 1 . Treads 3 | 2 1 . . Leg 1 | . . 1 . Wheel . | . . . . Hover . | . . . . Flight . | . . . . Utility 5 | 2 1 2 . Device . | . . . . Storage 3 | 1 1 1 . Processor . | . . . . Hackware . | . . . . Protection 2 | 1 . 1 . Artifact . | . . . . Weapon 10 | 2 4 2 2 Energy Gun 2 | . . 1 1 Energy Cannon 2 | . 2 . . Ballistic Gun 3 | 2 . . 1 Ballistic Cannon 1 | . . 1 . Launcher . | . . . . Special Weapon 1 | . 1 . . Impact Weapon . | . . . . Slashing Weapon . | . . . . Piercing Weapon . | . . . . Special Melee Weapon 1 | . 1 . . Unidentified Prototypes . | . . . . Parts Lost 7 | . . 5 2 Power 1 | . . 1 . Propulsion . | . . . . Utility 2 | . . 2 . Weapon 4 | . . 2 2 Highest Loss Streak 3 | . . 2 3 To Critical Strikes . | . . . . Average Backups 12 | 2 8 16 14 Power . | . . . . Propulsion 2 | . . 3 3 Utility 4 | . 3 5 7 Weapon 4 | . 3 4 3 Tool/Special . | . . . . Unused Backups 11 | . . . 11 Power . | . . . . Propulsion 2 | . . . 2 Utility 7 | . . . 7 Weapon 2 | . . . 2 Tool/Special . | . . . . Average Slot Usage (%) 79 | . 99 62 42 Engine 10 | . 12 9 10 Treads 20 | . 36 6 . Leg 4 | . . 8 10 Storage 11 | . 12 10 10 Protection 10 | . 12 9 . Energy Cannon 11 | . 11 10 7 Ballistic Cannon 1 | . . 1 . Special Weapon 6 | . 7 6 . Special Melee Weapon 1 | . 3 . . Peak Build Rating 28 | 7 9 28 26 Average Rating 15 | 4 8 21 24 On Entrance 9 | . 7 9 22 Avg Prop Armor Cover (%) . | . . . . Naked Turns . | . . . . Heaviest Build 55 | 20 52 55 52 Greatest Support 60 | 40 60 60 55 Greatest Overweight (x) 4 | 4 . . . Average Overweight (x) . | . . . . Largest Inventory Capacity 20 | 10 20 20 20 Average Capacity 18 | 8 17 20 20 Most Carried 20 | 6 11 20 17 Average Carried 13 | 2 8 17 15 Final Capacity 20 | 10 20 20 20 Final Carried 17 | 1 11 17 15 Class Distribution -------------------- 100% | Hacker-Mutant Dominant Class ---------------- Hacker-Mutant | -10/Materials Hacker-Mutant | -10/Subcaves Hacker-Mutant | -8/Recycling Resources | -11 -10 -10 -8 ----------- Run | Yrd Mat Sub Rec Matter Collected 517 | 246 94 177 . Remotely . | . . . . Salvage Created 1140 | . 635 432 73 Parts 52 | . 23 26 3 Haulers Intercepted 2 | . 2 . . Recyclers Shooed 1 | . 1 . . Parts Field Recycled . | . . . . Retrieved Matter . | . . . . Parts Self-Destructed . | . . . . Prevented . | . . . . Parts Restored . | . . . . Kills | -11 -10 -10 -8 ------- Run | Yrd Mat Sub Rec Combat Hostiles Destroyed 23 | . 8 13 2 Guns 2 | . . . 2 Cannons 21 | . 8 13 . Classes Destroyed 11 | . 6 4 1 Hauler 2 | . 2 . . Recycler 3 | . 3 . . Mechanic 1 | . 1 . . Turret 2 | . . 2 . Watcher 1 | . 1 . . Swarmer 9 | . 4 5 . Grunt 4 | . 4 . . Sentry 2 | . . 1 1 Demolisher 1 | . . . 1 Cobbler 1 | . . 1 . Subdweller 7 | . . 7 . Best Kill Streak 4 | . 2 4 2 Combat Bots Only 4 | . 2 4 2 Max Kills in Single Turn 2 | . 1 2 1 Gunslinging . | . . . . Exploded . | . . . . Melee . | . . . . Uniques/NPCs Destroyed . | . . . . Combat | -11 -10 -10 -8 -------- Run | Yrd Mat Sub Rec Hostile Shots Fired 186 | . 34 109 43 Missed 45 | . 6 37 2 Hits 141 | . 28 72 41 Projectile 141 | . 28 72 41 AOE 8 | . . 6 2 Critical Strikes 4 | . 1 2 1 Damage Taken 1457 | . 180 877 400 Core 251 | . 20 165 66 Absorbed by Shields . | . . . . Ignored by Resistances 899 | . 123 531 245 Core Remaining (%) 100 | 100 . . . Volleys Fired 118 | . 44 64 10 Largest 2 | . 2 2 2 Hottest 160 | . 160 160 120 Shots Fired 175 | . 50 110 15 Gun 10 | . . 1 9 Cannon 146 | . 44 96 6 Launcher . | . . . . Special 19 | . 6 13 . Kinetic 27 | . . 22 5 Thermal 143 | . 50 87 6 Explosive . | . . . . Electromagnetic 5 | . . 1 4 Robot Hit Streak 33 | . 14 33 20 Robot Miss Streak 2 | . 2 2 1 Penetration Max . | . . . . Secondary Targets . | . . . . Shots Hit Robots 124 | . 45 65 14 Core Hits 46 | . 16 24 6 Critical Kills . | . . . . Critical Parts Destroyed . | . . . . Critical Strikes 1 | . . 1 . Blast 1 | . . 1 . Melee Attacks 7 | . 7 . . Impact . | . . . . Slashing . | . . . . Piercing . | . . . . Sneak Attacks 5 | . 5 . . Combat Hostiles . | . . . . Follow-up Attacks . | . . . . Damage Inflicted 2140 | . 686 1226 228 Guns 142 | . . . 142 Cannons 1918 | . 630 1202 86 Explosions . | . . . . Melee . | . . . . Ramming 8 | . 8 . . Kinetic 420 | . . 345 75 Thermal 1645 | . 678 881 86 Explosive . | . . . . Electromagnetic 67 | . . . 67 Impact . | . . . . Slashing . | . . . . Piercing . | . . . . Highest Corruption . | . . . . Average Corruption . | . . . . Corruption Purged . | . . . . Corruption Blocked . | . . . . Overload Shots . | . . . . Overflow Damage 50 | . 21 29 . Projectiles 50 | . 21 29 . Explosions . | . . . . Melee . | . . . . Knockbacks 4 | . . 4 . Impact . | . . . . Kinetic 4 | . . 4 . Secondary . | . . . . Self-Inflicted Damage . | . . . . Shots . | . . . . Rammed 1 | . 1 . . Targets Rammed 1 | . 1 . . Kicked . | . . . . Crushed . | . . . . Highest Temperature 428 | . 234 164 428 Average Temperature 86 | . 69 45 289 Received Heat Transfer 763 | . 57 463 243 Effects 2 | . . . 2 Shutdowns 1 | . . . 1 Damage (minor) 1 | . . . 1 Siege Activations . | . . . . Martial Activations . | . . . . Shielding Activations . | . . . . Robots Disrupted . | . . . . Combat Hostiles . | . . . . Robots Corrupted . | . . . . Combat Hostiles . | . . . . Parts Fried . | . . . . Impact Corruptions . | . . . . Robots Melted . | . . . . Combat Hostiles . | . . . . Parts Melted 4 | . 2 2 . Heat Transferred 3480 | . 1432 1863 185 Parts Sabotaged . | . . . . Parts Stolen . | . . . . Parts Stripped . | . . . . Power Chain Reactions . | . . . . Alert | -11 -10 -10 -8 ------- Run | Yrd Mat Sub Rec Maximum Alert Level . | . . . . Low Security (%) 100 | 100 100 . 100 Level 1 . | . . . . Level 2 . | . . . . Level 3 . | . . . . Level 4 . | . . . . Level 5 . | . . . . High Security . | . . . . Max Security . | . . . . Peak Influence 64 | . 50 . 64 Initial 24 | . . . 24 Average 3 | . 2 . 37 Influence Increases 501 | . 241 220 40 Destroy 0b10 Robot/C 360 | . 160 160 40 Destroy 0b10 Robot/NC 35 | . 35 . . Destroy Leader 46 | . 46 . . Lose Combat Pursuer 60 | . . 60 . Influence Decreases 472 | . 241 150 81 Entered New Map 46 | . . . 46 Time Decay 366 | . 221 130 15 Lost Part 40 | . . 20 20 Purge Threat 20 | . 20 . . Squads Dispatched . | . . . . Investigation . | . . . . Extermination . | . . . . Reinforcement . | . . . . Assault . | . . . . Garrison . | . . . . Intercept . | . . . . Searches Triggered . | . . . . Construction Impeded . | . . . . Haulers Reinforced . | . . . . Active Scanning Responses . | . . . . Cargo Convoy Interrupts . | . . . . Stealth | -11 -10 -10 -8 --------- Run | Yrd Mat Sub Rec Distress Signals 3 | . 3 . . Communications Jammed . | . . . . Distress Signals . | . . . . Times Spotted 42 | . 18 19 5 Peak Tracking Total 5 | . 3 5 5 Tactical Retreats 2 | . . 2 . Traps | -11 -10 -10 -8 ------- Run | Yrd Mat Sub Rec Traps Triggered 3 | . 2 1 . Indirectly . | . . . . Trap Hack Attempts . | . . . . Triggered . | . . . . Disarmed . | . . . . Reprogrammed . | . . . . Reused . | . . . . Traps Extracted . | . . . . Installed . | . . . . Triggered . | . . . . Machines | -11 -10 -10 -8 ---------- Run | Yrd Mat Sub Rec Machines Disabled 3 | . . 3 . Max in Single Turn 1 | . . 1 . Machines Repaired . | . . . . Machines Dismantled . | . . . . Machines Sabotaged . | . . . . Overloaded Fab Kills . | . . . . Hacking | -11 -10 -10 -8 --------- Run | Yrd Mat Sub Rec Machines Accessed 4 | . 2 2 . Terminals 2 | . 2 . . Fabricators . | . . . . Repair Stations . | . . . . Recycling Units . | . . . . Scanalyzers . | . . . . Garrison Access . | . . . . Total Hacks 8 | . 3 5 . Successful 8 | . 3 5 . Failed . | . . . . Catastrophic . | . . . . Database Lockouts . | . . . . Manual . | . . . . Terminals 3 | . 3 . . Fabricators . | . . . . Repair Stations . | . . . . Recycling Units . | . . . . Scanalyzers . | . . . . Garrison Access . | . . . . Terminal Hacks 8 | . 3 5 . Record 4 | . . 4 . Machine Index 1 | . 1 . . Unreport Threat 1 | . 1 . . Hauler Manifests 1 | . 1 . . Proto ID Catalog 1 | . . 1 . Fabricator Hacks . | . . . . Repair Station Hacks . | . . . . Recycling Unit Hacks . | . . . . Scanalyzer . | . . . . Garrison Access Hacks . | . . . . Unauthorized Hacks . | . . . . Terminals . | . . . . Fabricators . | . . . . Repair Stations . | . . . . Recycling Units . | . . . . Scanalyzers . | . . . . Garrison Access . | . . . . Data Cores Recovered . | . . . . Used . | . . . . Hacking Detections 1 | . 1 . . Full Trace Events . | . . . . Feedback Events . | . . . . Feedback Blocked . | . . . . Robot Schematics Acquired . | . . . . Robots Built . | . . . . Authchips . | . . . . Time . | . . . . Total Robot Build Rating . | . . . . Part Schematics Acquired . | . . . . Parts Built . | . . . . Authchips . | . . . . Time . | . . . . Total Part Build Rating . | . . . . Part Studies Acquired . | . . . . Parts Repaired . | . . . . Time . | . . . . Parts Recycled . | . . . . Recycled Matter . | . . . . Retrieved Matter . | . . . . Retrieved Components . | . . . . Parts Scanalyzed . | . . . . Part Schematics Acquired . | . . . . Parts Damaged . | . . . . Bothacking | -11 -10 -10 -8 ------------ Run | Yrd Mat Sub Rec Used RIF Installer . | . . . . Robots Hacked 4 | . 4 . . Non-combat 4 | . 4 . . Combat . | . . . . Robot Hacks Applied 5 | . 5 . . no_distress 5 | . 5 . . Relay Couplers Released . | . . . . Fabnet Peak Effective % . | . . . . Robots Rewired . | . . . . Allies Hacked . | . . . . Hacks Repelled . | . . . . Allies | -11 -10 -10 -8 -------- Run | Yrd Mat Sub Rec Total Allies . | . . . . Largest Group . | . . . . Highest-Rated Group . | . . . . Highest-Rated Ally . | . . . . Total Orders . | . . . . Ally Attacks . | . . . . Total Damage . | . . . . Kills . | . . . . Allies Corrupted . | . . . . Allies Melted . | . . . . Intel | -11 -10 -10 -8 ------- Run | Yrd Mat Sub Rec Active Infowar (turns) . | . . . . Robot Analysis Total . | . . . . Derelict Logs Recovered 1 | . . 1 . Drone Launches . | . . . . Drone Recoveries . | . . . . Exploration | -11 -10 -10 -8 ------------- Run | Yrd Mat Sub Rec Turns Passed 3802 | 72 1745 1954 31 Spaces Moved 2130 | 46 804 1277 3 Core 24 | 24 . . . Treads 977 | 22 804 151 . Legs 1129 | . . 1126 3 Wheels . | . . . . Hover . | . . . . Flight . | . . . . Fastest Speed 50 | 50 160 130 130 Average Speed 143 | 128 160 133 130 Slowest Speed 250 | 250 160 160 130 Overloaded Moves . | . . . . Propulsion Burnouts . | . . . . Robots Hopped . | . . . . Potential Cave-ins . | . . . . Cave-ins Triggered . | . . . . Exploration Rate (%) 46 | 3 100 78 5 Regions Visited 3 Branch Regions 2 Pre-discovered Areas . | . . . . Known Exits Taken 3 | 1 1 1 . Unknown Exits Taken . | . . . . Scrap Searched 8 | . . 8 . Spaces Dug 2 | . 2 . . Terrain Destroyed 4 | . 2 2 . Melee . | . . . . Projectile 4 | . 2 2 . AOE . | . . . . Terrain Rammed . | . . . . Walls Destroyed . | . . . . Machines Disabled . | . . . . Actions | -11 -10 -10 -8 --------- Run | Yrd Mat Sub Rec Total 2661 | 58 1195 1393 15 Wait 338 | . 318 20 . Move 2127 | 45 803 1276 3 Hop . | . . . . Pick Up 30 | 6 13 11 . Fast Attach 3 | 2 . 1 . Attach 14 | 5 1 6 2 Detach 5 | . . 5 . Swap 9 | . 6 3 . Drop 9 | . 2 7 . Fire 118 | . 44 64 10 Melee 7 | . 7 . . Ram . | . . . . Kick . | . . . . Crush 1 | . 1 . . Escape Stasis . | . . . . Rewire . | . . . . Trap . | . . . . Miscellaneous . | . . . . Route ------- -11/Scrapyard -10/Materials (discovered 5 exits: *Mat x3 / *Min / *Sub) -10/Subcaves (discovered 3 exits: *Mat x2 / *Rec) -8/Recycling History --------- Turn | Location | Event 8 | -11/Scrapyard | Identified exit to Materials 8 | -11/Scrapyard | Discovered exit to Materials (range 14) 73 | -11/Scrapyard | Entered Materials 73 | -10/Materials | Evolved 1 slot: Propulsion x1 306 | -10/Materials | Build established: Hacker-Mutant 377 | -10/Materials | Identified exit to Materials 377 | -10/Materials | Discovered exit to Materials (range 13) 519 | -10/Materials | Discovered exit to Materials (range 13) 1384 | -10/Materials | Identified exit to Mines 1384 | -10/Materials | Discovered exit to Mines (range 15) 1555 | -10/Materials | Discovered exit to Materials (range 8) 1801 | -10/Materials | Identified exit to Subcaves 1801 | -10/Materials | Discovered exit to Subcaves (range 9) 1818 | -10/Materials | Entered Subcaves 1819 | -10/Subcaves | Approached by a straggling Scientist 1820 | -10/Subcaves | A swath of the cavern ceiling suddenly collapsed 2096 | -10/Subcaves | Visited 4L-MR0's lab 2124 | -10/Subcaves | Found Cargo Legs 2139 | -10/Subcaves | Attached Cargo Legs, gained temporary slots: Utility x2 2939 | -10/Subcaves | Visited Clippyterm 2942 | -10/Subcaves | Identified exit to Recycling 2942 | -10/Subcaves | Identified exit to Materials 2942 | -10/Subcaves | Learned Factory stockpile data 3243 | -10/Subcaves | Disturbed a concealed Subdweller 3321 | -10/Subcaves | Ambushed by Subdwellers from Twisted Machinery 3447 | -10/Subcaves | Disturbed a concealed Subdweller 3747 | -10/Subcaves | Core integrity fell below 50% 3772 | -10/Subcaves | Entered Recycling 3789 | -8/Recycling | Core integrity fell below 20% 3803 | -8/Recycling | Destroyed by Y-45 Defender with Heavy Assault Rifle Last Messages --------------- 03770_ Mak. Thermal Plating destroyed. LOCATION=RECYCLING GOAL=ESCAPE 03778_ Y-45 Defender springs to life. 03780_ Y-45 Defender destroyed. 03783_ D-53 Grenadier destroyed. 03787_ Hvy. Riot Gun destroyed. 03790_ U-05 Engineer lays Concrete. 03791_ Overheating: Hcp. Storage Unit damaged (-183). 03791_ Critical hit (Burn: +37). 03792_ U-05 Engineer builds a Wall. 03792_ Destroyed Lgt. Nuclear Core. 03793_ Beam Cannon destroyed. 03794_ Power failure, Ion Engine shutdown. 03795_ G-47 Trooper IFF system glitched. 03795_ B-36 Bruiser suffers critical hit (Burn). 03796_ U-05 Engineer lays Concrete. 03798_ R-06 Scavenger collects Imp. Ion Engine. 03799_ U-05 Engineer lays Concrete. Map ----- +----------------------------------------------------+ | | | ?????????????????????????????????????????????????? | | ?????????????????????????????????????????????????? | | ?????????????????????????????????????????????????? | | ?????????????????????????????????????????????????? | | ?????????????????????????????????????????????????? | | ?????????????????????????????????????????????????? | | ?????????????????????????????????????????????????? | | ?????????????????????????????????????????????????? | | ?????????????????????????????????????????????????? | | ?????????????????????????????????????????????????? | | ?????????????????????????????????????????????????? | | ?????????????????????????????????????????????????? | | ?????????????????????????????????????????????????? | | ?????????????????????????????????????????????????? | | ?????????????????????????????????????????????????? | | ?????????????????????????????????????????????????? | | ??????????????????###############????????????????? | | ??????????????????#gsb !!i gkg #????????????????? | | ??????????????????# g![ % ukY#????????????????? | | ???????????????????/! [bYY Y?????????????????? | | ??????????? ???????? ! g pdY ??????????????????? | | ??????????? #######% #???????????????????? | | ?????????? ##??????????????????? | | ?????????? Y u #??????????????????? | | ?????????? @ #???????????????????? | | ?????????? % #???????????????????? | | ?????????????##"Y"# #???????????????????? | | ??????????????????# r # #???????????????????? | | ??????????????????# ########???????????????????? | | ??????????????????# ???????????????????????????? | | ??????????????????# ????????????????????????????? | | ??????????????????# ?????????????????????????????? | | ??????????????????#??????????????????????????????? | | ?????????????????????????????????????????????????? | | ?????????????????????????????????????????????????? | | ?????????????????????????????????????????????????? | | ?????????????????????????????????????????????????? | | ?????????????????????????????????????????????????? | | ?????????????????????????????????????????????????? | | ?????????????????????????????????????????????????? | | ?????????????????????????????????????????????????? | | ?????????????????????????????????????????????????? | | ?????????????????????????????????????????????????? | | ?????????????????????????????????????????????????? | | ?????????????????????????????????????????????????? | | ?????????????????????????????????????????????????? | | ?????????????????????????????????????????????????? | | ?????????????????????????????????????????????????? | | ?????????????????????????????????????????????????? | +----------------------------------------------------+ Best States ------------- Heat Dissipation 25 Energy Generation 10 Energy Capacity 250 Matter Stores 300 Matter Capacity 300 Sight Range 16 Terrain Scan Density 10 Armor Coverage 150 Resistance: KI 35 Resistance: TH 45 Resistance: EX 35 Resistance: EM 35 Resistance: I 35 Resistance: S 35 Resistance: P 35 Evasion (%) 55 Recoil Reduction 3 Offensive Hacking 20 Item Schematics ----------------- None Robot Schematics ------------------ None Fabricated ------------ Nothing Repaired ---------- Nothing Studied --------- None Alien Tech Used ----------------- None Achievements -------------- None Challenges ------------ None Game ------ Seed EnergyQuantumThermoblaster Manual? 0 Play Time 00:17:34 Cumulative 91.7 hours Start 2025.11.14 @ 11:48:03 End 2025.11.14 @ 12:05:11 Sessions 1 Manual Loads 0 Difficulty Explorer Special Mode None Game No. 101 Rogue 0 Adventurer 0 Explorer 101 Win Type - Total 0 Types 0/0/0/0/0/0/0/0/0/0 Lore% 58 Gallery% 56 Achievement% 44 Wizard Run 0 Options --------- Layout 1 ASCII 0 Keyboard 0 Movement Mouse Keybinds 0 Fullscreen 1 Font 24/Smallcaps Map View 50x35 Zoom Use 0% Tactical HUD 1 Map Filters NONE Filters NONE Steam 1 RUN: 69b97105-07b4-4fcc-9cce-004798583d05